bitfinex-derivatives/quotes_BTCF0:USTF0_20250308
["timestamp","ask_amount","ask_price","bid_price","bid_amount"]
[1741407842652,0.1161967,86085.0,86082.0,0.474]
[1741407842854,0.1161994,86083.0,86082.0,0.474]
[1741407843152,0.1161994,86083.0,86082.0,0.52788069]
[1741407843355,0.3385994,86083.0,86082.0,0.52788069]
[1741407843957,0.3385994,86083.0,86082.0,0.64408149]
[1741407844849,0.3385994,86083.0,86082.0,0.57731662]
[1741407846150,0.3385994,86083.0,86082.0,0.51939731]
[1741407846351,0.27329476,86083.0,86082.0,0.51939731]
[1741407846657,0.22105108,86083.0,86082.0,0.51939731]
[1741407847059,0.22105108,86083.0,86082.0,0.6026138]
[1741407847568,0.14123435,86083.0,86082.0,0.6026138]
[1741407848059,0.25743375,86083.0,86082.0,0.6026138]
[1741407849257,0.25743375,86083.0,86082.0,0.54469449]
[1741407849959,0.14123435,86083.0,86082.0,0.54469449]
[1741407850150,0.14123435,86083.0,86082.0,0.66089529]
[1741407850355,0.1114,86083.0,86082.0,0.66089529]
[1741407852357,0.1114,86083.0,86082.0,0.60297598]
[1741407855361,0.1114,86083.0,86082.0,0.54505667]
[1741407855565,0.1114,86083.0,86082.0,0.18425667]
[1741407855861,0.2275994,86083.0,86082.0,0.48707262]
[1741407856263,0.1477831,86083.0,86082.0,0.48707262]
[1741407857066,0.08247848,86083.0,86082.0,0.41901675]
[1741407858259,0.08247848,86083.0,86082.0,0.36109744]
[1741407860963,0.08247848,86083.0,86082.0,0.46979744]
[1741407861368,0.08247848,86083.0,86082.0,0.41187813]
[1741407864262,0.08247848,86083.0,86082.0,0.16691675]
[1741407864462,0.08247848,86083.0,86082.0,0.00029744]
[1741407864664,0.1699985,86085.0,86080.0,0.00017423]
[1741407865069,0.1162014,86082.0,86080.0,0.00017423]
[1741407865363,0.2288021,86081.0,86080.0,0.00017423]
[1741407866473,0.13447234,86081.0,86080.0,0.00017423]
[1741407866975,0.0691671,86081.0,86080.0,0.00017423]
[1741407867165,0.1049,86087.0,86080.0,0.00017423]
[1741407867473,0.1162015,86082.0,86079.0,0.1162047]
[1741407867671,0.1162015,86082.0,86080.0,0.1093]
[1741407868765,0.1162021,86081.0,86080.0,0.16813271]
[1741407868960,0.1162021,86081.0,86080.0,0.05883271]
[1741407869167,0.0580986,86085.0,86079.0,0.1128]
[1741407869371,0.1162035,86080.0,86079.0,0.1128]
[1741407869679,0.0581004,86082.0,86079.0,0.2290048]
[1741407869868,0.0581004,86082.0,86079.0,0.3404048]
[1741407870165,0.106,86081.0,86079.0,0.3404048]
[1741407870366,0.106,86081.0,86079.0,0.39938263]
[1741407870566,0.106,86081.0,86079.0,0.34146332]
[1741407872976,0.106,86081.0,86079.0,0.22525852]
[1741407873178,0.106,86081.0,86080.0,0.1162035]
[1741407873471,0.106,86081.0,86080.0,0.05828419]
[1741407873771,0.02618247,86081.0,86080.0,0.28178419]
[1741407874478,0.14238457,86081.0,86080.0,0.1069]
[1741407876573,0.14238457,86081.0,86080.0,0.04898069]
[1741407877379,0.07707931,86081.0,86080.0,0.04898069]
[1741407877769,0.18377931,86081.0,86080.0,0.04898069]
[1741407878564,0.18377931,86081.0,86079.0,0.00868732]
[1741407878770,0.1162089,86076.0,86075.0,0.1146]
[1741407878973,0.0581035,86078.0,86074.0,0.76189178]
[1741407879175,0.5824102,86075.0,86074.0,0.76089178]
[1741407879479,0.6629702,86075.0,86074.0,0.76089178]
[1741407879779,0.6629702,86075.0,86074.0,0.70297247]
[1741407881180,0.1162129,86073.0,86072.0,0.00017423]
[1741407882175,0.1162129,86073.0,86066.0,0.63017371]
[1741407882176,0.116221,86067.0,86066.0,0.63017371]
[1741407882481,0.1162224,86066.0,86065.0,0.2405836]
[1741407882683,0.2258224,86066.0,86065.0,0.09437839]
[1741407882872,0.3758224,86066.0,86065.0,0.09437839]
[1741407883270,0.2258224,86066.0,86065.0,0.09437839]
[1741407884276,0.2258224,86066.0,86065.0,0.03267719]
[1741407884482,0.3758224,86066.0,86065.0,9e-08]
[1741407884682,0.2258224,86066.0,86065.0,9e-08]
[1741407884885,0.1162332,86058.0,86057.0,0.00017423]
[1741407885073,0.5575932,86058.0,86057.0,0.00017423]
[1741407885782,0.1162521,86044.0,86043.0,0.05389836]
[1741407886077,0.4770521,86044.0,86043.0,0.05389836]
[1741407886777,0.7025521,86044.0,86043.0,0.05389836]
[1741407886981,0.1162589,86039.0,86038.0,0.1126]
[1741407887883,0.6981589,86039.0,86038.0,0.1126]
[1741407888772,0.6981589,86039.0,86038.0,0.05468069]
[1741407889384,0.1162616,86037.0,86036.0,0.111]
[1741407891779,0.1162616,86037.0,86036.0,0.05308069]
[1741407892084,0.1162616,86037.0,86036.0,0.16468069]
[1741407894780,0.1162616,86037.0,86036.0,0.10676138]
[1741407897777,0.1162616,86037.0,86036.0,0.04884207]
[1741407900895,0.1162643,86035.0,86034.0,0.05875876]
[1741407901187,0.1162683,86032.0,86031.0,0.1082]
[1741407901692,0.1155891,86032.0,86031.0,0.16501103]
[1741407902079,0.36148,86049.0,86031.0,0.2735501]
[1741407902280,0.3608,86049.0,86048.0,0.1162467]
[1741407902590,0.00017423,86052.0,86048.0,0.1162467]
[1741407902591,0.00017423,86052.0,86051.0,0.1162426]
[1741407902787,0.00017423,86052.0,86051.0,0.2162426]
[1741407903188,0.00017423,86052.0,86051.0,0.1162426]
[1741407903388,0.00017423,86052.0,86051.0,0.2162426]
[1741407903891,0.00017423,86052.0,86051.0,0.15832329]
[1741407904287,0.00017423,86052.0,86051.0,0.05832329]
[1741407904495,0.00017423,86052.0,86051.0,0.15832329]
[1741407904694,0.00017423,86052.0,86051.0,0.41912329]
[1741407904993,0.00017423,86052.0,86051.0,0.51912329]
[1741407906885,0.00017423,86052.0,86051.0,0.3608]
[1741407907079,0.00017423,86052.0,86051.0,0.4608]
[1741407907289,0.00017423,86052.0,86051.0,0.4770426]
[1741407909295,0.1162374,86055.0,86054.0,0.1162386]
[1741407910001,0.1162374,86055.0,86054.0,0.05831929]
[1741407912897,0.1125,86058.0,86056.0,0.1162346]
[1741407913200,0.2287332,86058.0,86057.0,0.16561519]
[1741407914192,0.2287332,86058.0,86057.0,0.22306565]
[1741407914394,0.1125,86058.0,86057.0,0.22306565]
[1741407915594,0.3342332,86058.0,86057.0,0.22306565]
[1741407915903,0.3342332,86058.0,86057.0,0.10683115]
[1741407916105,0.3342332,86058.0,86057.0,0.04891184]
[1741407916295,0.1162345,86057.0,86056.0,0.1115]
[1741407916496,0.1162345,86057.0,86056.0,0.16950208]
[1741407916695,0.3328345,86057.0,86056.0,0.16950208]
[1741407919095,0.3328345,86057.0,86056.0,0.05800208]
[1741407919296,0.3328345,86057.0,86051.0,0.3608]
[1741407919604,0.1162413,86052.0,86051.0,0.3608]
[1741407920207,0.4770413,86052.0,86051.0,0.05871049]
[1741407920398,0.1162521,86044.0,86039.0,0.73164]
[1741407920598,0.4770521,86044.0,86039.0,0.7326]
[1741407921005,0.4770521,86044.0,86040.0,0.05901243]
[1741407921211,0.6902521,86044.0,86040.0,0.05901243]
[1741407921502,0.3294521,86044.0,86040.0,0.17526943]
[1741407921700,0.3294521,86044.0,86041.0,0.1162551]
[1741407921893,0.3294521,86044.0,86040.0,0.17526863]
[1741407922096,0.1162562,86041.0,86040.0,0.11752366]
[1741407922302,0.116256,86042.0,86040.0,0.11752366]
[1741407922501,0.1071,86041.0,86040.0,0.11752366]
[1741407922805,0.2233562,86041.0,86040.0,0.00126746]
[1741407922998,0.2233562,86041.0,86039.0,0.8488588]
[1741407923305,0.2233562,86041.0,86039.0,0.8478988]
[1741407923702,0.2233562,86041.0,86040.0,0.107]
[1741407923893,0.2233562,86041.0,86039.0,0.73164]
[1741407923894,0.1162575,86040.0,86039.0,0.73256]
[1741407924098,0.1162575,86040.0,86039.0,0.73164]
[1741407924607,0.1162575,86040.0,86039.0,0.79110534]
[1741407924801,0.2278575,86040.0,86039.0,0.79110534]
[1741407925203,0.2278575,86040.0,86039.0,0.84628603]
[1741407928214,0.2278575,86040.0,86039.0,0.78836672]
[1741407930206,0.36140001,86052.0,86039.0,0.88836672]
[1741407930411,0.1135,86050.0,86049.0,0.1162453]
[1741407930912,0.1135,86050.0,86049.0,0.2162453]
[1741407931211,0.1135,86050.0,86049.0,0.15832599]
[1741407932105,0.00174356,86058.0,86057.0,0.1162345]
[1741407932309,0.00174356,86058.0,86057.0,0.2162345]
[1741407932610,0.00174356,86058.0,86057.0,0.1162345]
[1741407933413,0.22238941,86059.0,86057.0,0.2261345]
[1741407933709,0.15706552,86059.0,86057.0,0.2261345]
[1741407933903,0.15706552,86059.0,86057.0,0.1099]
[1741407934110,0.15706552,86059.0,86058.0,0.1162332]
[1741407934309,0.15706552,86059.0,86058.0,0.05831389]
[1741407934813,0.15706552,86059.0,86058.0,0.11565451]
[1741407935013,0.09174176,86059.0,86058.0,0.11565451]
[1741407935602,0.06764176,86059.0,86058.0,0.11565451]
[1741407935909,0.18387356,86059.0,86058.0,0.05734062]
[1741407936208,0.00017434,86063.0,86062.0,0.1162278]
[1741407936409,0.0017433,86076.0,86075.0,0.1162102]
[1741407936804,0.0017433,86076.0,86075.0,0.17389929]
[1741407937313,0.0017433,86076.0,86075.0,0.23267998]
[1741407937504,0.1179522,86076.0,86075.0,0.17438909]
[1741407937911,0.1179522,86076.0,86075.0,0.25788719]
[1741407938813,0.1179522,86076.0,86075.0,0.17438909]
[1741407940307,0.1179522,86076.0,86075.0,0.11646978]
[1741407940903,0.1162143,86072.0,86071.0,0.3608]
[1741407941101,0.116217,86070.0,86069.0,0.0834981]
[1741407941302,0.1162197,86068.0,86067.0,0.11507434]
[1741407941609,0.1162197,86068.0,86067.0,0.00017434]
[1741407941808,0.221,86069.0,86067.0,0.00017434]
[1741407942005,0.1162197,86068.0,86067.0,0.00017434]
[1741407942414,0.3437197,86068.0,86067.0,0.00017434]
[1741407943312,0.3437197,86068.0,86061.0,0.0011657]
[1741407943313,0.2275,86068.0,86061.0,0.0011657]
[1741407943514,0.4770278,86062.0,86061.0,0.1162291]
[1741407943917,0.3608,86062.0,86061.0,0.1162291]
[1741407944111,0.1162305,86060.0,86059.0,0.0581155]
[1741407944409,0.1162318,86059.0,86058.0,0.13991303]
[1741407944610,0.1162318,86059.0,86057.0,0.1162345]
[1741407944909,0.2217,86058.0,86057.0,0.1162345]
[1741407945216,0.00017434,86067.0,86057.0,0.1]
[1741407945511,0.00017434,86067.0,86057.0,0.19915267]
[1741407945709,0.1162332,86058.0,86057.0,0.19915267]
[1741407945910,0.1162332,86058.0,86057.0,0.05923964]
[1741407946215,0.1162364,86056.0,86053.0,0.1162393]
[1741407946418,0.1103,86055.0,86053.0,0.15831999]
[1741407946617,0.2175,86055.0,86054.0,0.2136]
[1741407947508,0.2175,86055.0,86054.0,0.1136]
[1741407947916,0.2175,86055.0,86054.0,0.17029632]
[1741407949313,0.2175,86055.0,86054.0,0.38653492]
[1741407949610,0.2175,86055.0,86054.0,0.32861561]
[1741407950124,0.0017431,86075.0,86054.0,0.29281701]
[1741407950411,0.1116,86072.0,86066.0,0.1162224]
[1741407952508,0.1116,86072.0,86066.0,0.05830309]
[1741407952708,0.1116,86072.0,86066.0,0.16460309]
[1741407953014,0.1116,86072.0,86066.0,0.1063]
[1741407953321,0.1161975,86085.0,86080.0,0.1162035]
[1741407953610,0.1161982,86084.0,86080.0,0.2162035]
[1741407953810,0.116196,86086.0,86080.0,0.2162035]
[1741407954117,0.1148,86083.0,86080.0,0.1162035]
[1741407954313,0.1148,86083.0,86080.0,0.2236035]
[1741407954718,0.1107,86082.0,86080.0,0.2236035]
[1741407955319,0.1148,86081.0,86080.0,0.2236035]
[1741407955519,0.1148,86081.0,86080.0,0.16568419]
[1741407955710,0.1148,86081.0,86080.0,0.26568419]
[1741407955910,0.00017434,86089.0,86088.0,0.1161927]
[1741407956315,0.00017434,86089.0,86088.0,0.2235927]
[1741407956815,0.00017434,86089.0,86088.0,0.2826015]
[1741407957914,0.11636564,86089.0,86088.0,0.0590088]
[1741407958117,0.00017434,86089.0,86087.0,0.2282]
[1741407958315,0.1068,86088.0,86087.0,0.344394]
[1741407958517,0.00217434,86089.0,86088.0,0.05827339]
[1741407958724,0.00317434,86089.0,86088.0,0.05827339]
[1741407959023,0.00117434,86089.0,86088.0,0.28647339]
[1741407959407,0.00017434,86089.0,86088.0,0.28647339]
[1741407960326,0.1,86100.0,86097.0,0.1161805]
[1741407960618,0.2225,86098.0,86097.0,0.1161805]
[1741407961719,0.2225,86098.0,86097.0,0.05826119]
[1741407961918,0.1161859,86093.0,86092.0,0.3608]
[1741407962224,0.0580909,86096.0,86092.0,0.3608]
[1741407962430,0.2306854,86094.0,86092.0,0.3608]
[1741407962720,0.2318859,86093.0,86092.0,0.3608]
[1741407963123,0.1157,86093.0,86092.0,0.4769873]
[1741407963325,0.1157,86093.0,86092.0,0.5769873]
[1741407964214,0.1157,86093.0,86092.0,0.4769873]
[1741407964420,0.2318859,86093.0,86092.0,0.3608]
[1741407964618,0.1157,86093.0,86092.0,0.30288069]
[1741407964817,0.2318859,86093.0,86092.0,0.30288069]
[1741407965426,0.2318859,86093.0,86092.0,0.41906799]
[1741407965626,0.1157,86093.0,86092.0,0.41906799]
[1741407967618,0.05040311,86093.0,86092.0,0.36114868]
[1741407968327,0.05040311,86093.0,86092.0,0.1161873]
[1741407970823,0.05040311,86093.0,86092.0,0.05826799]
[1741407971028,0.16730311,86093.0,86092.0,0.05826799]
[1741407971324,0.16730311,86093.0,86092.0,0.15826799]
[1741407972222,0.10200623,86093.0,86092.0,0.15826799]
[1741407972623,0.02219893,86093.0,86092.0,0.05826799]
[1741407972826,0.02219893,86093.0,86092.0,0.15826799]
[1741407973828,0.02219893,86093.0,86092.0,0.1]
[1741407974030,0.02219893,86093.0,86092.0,0.2161873]
[1741407974927,0.02219893,86093.0,86092.0,0.1161873]
[1741407975132,0.02219893,86093.0,86092.0,0.11750868]
[1741407975724,0.02219893,86093.0,86092.0,0.21750868]
[1741407976318,0.02219893,86093.0,86092.0,0.11750868]
[1741407976724,0.02219893,86093.0,86092.0,0.22530868]
[1741407976924,0.02219893,86093.0,86092.0,0.16738937]
[1741407977330,0.02219893,86093.0,86092.0,0.26738937]
[1741407979931,0.02219893,86093.0,86092.0,0.20912138]
[1741407980238,0.1152,86095.0,86094.0,0.1161846]
[1741407981538,0.1151,86098.0,86097.0,0.1161805]
[1741407981944,0.1,86100.0,86096.0,0.2207]
[1741407982238,0.1061,86099.0,86097.0,0.11750098]
[1741407982654,0.1061,86099.0,86098.0,0.2258]
[1741407982849,0.1061,86099.0,86098.0,0.16788069]
[1741407983052,0.216,86099.0,86098.0,0.16788069]
[1741407984151,0.1161792,86098.0,86097.0,0.00132138]
[1741407984655,0.27338581,86098.0,86097.0,0.00132138]
[1741407985041,0.2225,86098.0,86097.0,0.00132138]
[1741407985249,0.2225,86098.0,86097.0,0.11750188]
[1741407985655,0.2225,86098.0,86097.0,0.20099998]
[1741407985850,0.12818727,86098.0,86097.0,0.20099998]
[1741407986055,0.12818727,86098.0,86097.0,0.14308067]
[1741407986551,0.12818727,86098.0,86097.0,0.25918067]
[1741407986552,0.04838418,86098.0,86097.0,0.25918067]
[1741407987546,0.04838418,86098.0,86097.0,0.35918067]
[1741407988243,0.04838418,86098.0,86097.0,0.2995981]
[1741407988446,0.04838418,86098.0,86097.0,0.1995981]
[1741407988855,0.04838418,86098.0,86097.0,0.3136981]
[1741407989053,0.04838418,86098.0,86097.0,0.25577879]
[1741407989947,0.04838418,86098.0,86097.0,0.4463805]
[1741407990144,0.06858119,86100.0,86097.0,0.3302]
[1741407990342,0.06858119,86100.0,86098.0,0.1161792]
[1741407990748,0.06858119,86100.0,86099.0,0.2293]
[1741407991856,0.06858119,86100.0,86099.0,0.3454778]
[1741407992058,0.06858119,86100.0,86099.0,0.17138069]
[1741407992649,0.18475769,86100.0,86099.0,0.17138069]
[1741407994062,0.18575769,86100.0,86099.0,0.17138069]
[1741407994559,0.06958119,86100.0,86099.0,0.17138069]
[1741407995062,0.06958119,86100.0,86099.0,0.11346138]
[1741407995464,0.06958119,86100.0,86099.0,0.22963918]
[1741407996154,0.00428799,86100.0,86099.0,0.22963918]
[1741407997262,0.00428799,86100.0,86099.0,0.11346138]
[1741407997653,0.11488799,86100.0,86099.0,0.11346138]
[1741407998053,0.11488799,86100.0,86099.0,0.05554207]
[1741407998264,0.03508546,86100.0,86099.0,0.05554207]
[1741407998853,0.03508546,86100.0,86099.0,0.34582135]
[1741407999053,0.15126196,86100.0,86099.0,0.34582135]
[1741407999359,0.11311746,86100.0,86099.0,0.34582135]
[1741408001263,0.11311746,86100.0,86099.0,0.28790204]
[1741408002266,0.11311746,86100.0,86099.0,0.28890204]
[1741408003468,0.11311746,86100.0,86099.0,0.001]
[1741408003881,0.11311746,86100.0,86097.0,0.1161805]
[1741408004062,0.1161792,86098.0,86097.0,0.1161805]
[1741408004372,0.1161792,86098.0,86093.0,0.69358901]
[1741408004373,0.1161846,86094.0,86093.0,0.69358901]
[1741408004564,0.4769846,86094.0,86093.0,0.69266901]
[1741408005375,0.53407675,86094.0,86093.0,0.69266901]
[1741408007178,0.11619,86090.0,86089.0,0.00017423]
[1741408007365,0.1161886,86091.0,86088.0,0.00064]
[1741408007565,0.1161967,86085.0,86084.0,0.05937182]
[1741408007770,0.45456081,86085.0,86084.0,0.11865782]
[1741408008372,0.45456081,86085.0,86084.0,0.059286]
[1741408008564,0.45456081,86085.0,86081.0,0.1666007]
[1741408008565,0.3608,86085.0,86081.0,0.1666007]
[1741408008765,0.1162021,86081.0,86080.0,0.74056213]
[1741408008966,0.1162021,86081.0,86080.0,0.73992213]
[1741408009170,0.1162021,86081.0,86080.0,0.85612563]
[1741408009583,0.1162021,86081.0,86080.0,1.07952563]
[1741408009878,0.1162021,86081.0,86080.0,0.96332213]
[1741408010268,0.1162021,86081.0,86080.0,0.79320282]
[1741408013276,0.1162021,86081.0,86080.0,0.73528351]
[1741408014776,0.1162021,86081.0,86080.0,0.74413865]
[1741408016371,0.1162021,86081.0,86080.0,0.68621934]
[1741408018079,0.1162021,86081.0,86080.0,0.80242284]
[1741408018677,0.1162021,86081.0,86080.0,0.68621934]
[1741408019484,0.1162021,86081.0,86080.0,0.62830003]
[1741408022493,0.1162021,86081.0,86080.0,0.57038072]
[1741408023899,0.3608,86081.0,86080.0,0.68658422]
[1741408024085,0.00060001,86090.0,86089.0,0.1161913]
[1741408024392,0.1161916,86089.0,86088.0,0.1161927]
[1741408024595,0.1161916,86089.0,86088.0,0.1123]
[1741408025486,0.1161916,86089.0,86088.0,0.05438069]
[1741408026296,0.1161916,86089.0,86088.0,0.17057339]
[1741408027493,0.0580945,86091.0,86088.0,0.17057339]
[1741408027796,0.11619,86090.0,86089.0,0.1128]
[1741408028390,0.22619,86090.0,86089.0,0.1128]
[1741408028593,0.22619,86090.0,86089.0,0.05488069]
[1741408031595,0.1161913,86089.0,86088.0,0.05134207]
[1741408034695,0.1161927,86088.0,86087.0,0.07646571]
[1741408034892,0.2267927,86088.0,86087.0,0.07646571]
[1741408035994,0.0580981,86086.0,86083.0,0.31150453]
[1741408036195,0.4769981,86084.0,86083.0,0.31150453]
[1741408036701,0.6986981,86084.0,86083.0,0.31150453]
[1741408037593,0.6986981,86084.0,86083.0,0.2536422]
[1741408038590,0.6986981,86084.0,86082.0,0.7603302]
[1741408038805,0.1161994,86083.0,86082.0,0.7603302]
[1741408039295,0.3463994,86083.0,86082.0,0.7603302]
[1741408040594,0.3463994,86083.0,86082.0,0.70246787]
[1741408040992,0.3463994,86083.0,86082.0,0.71101985]
[1741408042298,0.4963994,86083.0,86082.0,0.71101985]
[1741408042499,0.4963994,86083.0,86082.0,0.38896811]
[1741408042691,0.51806084,86083.0,86076.0,0.00017423]
[1741408042893,0.4770075,86077.0,86076.0,0.00017423]
[1741408043492,0.4770075,86077.0,86076.0,3e-08]
[1741408043493,0.6270075,86077.0,86076.0,3e-08]
[1741408043697,0.1162129,86073.0,86072.0,0.57295467]
[1741408043891,0.5571329,86073.0,86072.0,0.35280277]
[1741408044094,0.7071329,86073.0,86072.0,0.10799958]
[1741408044394,0.116248,86047.0,86046.0,0.1113]
[1741408044591,0.477048,86047.0,86046.0,0.1113]
[1741408044794,0.477048,86047.0,86046.0,0.2275494]
[1741408045399,0.706948,86047.0,86046.0,0.3426494]
[1741408046904,0.706948,86047.0,86046.0,0.28478707]
[1741408047304,0.706948,86047.0,86046.0,0.16853767]
[1741408049803,0.706948,86047.0,86046.0,0.11067534]
[1741408052700,0.706948,86047.0,86046.0,0.05281301]
[1741408052901,0.706948,86047.0,86046.0,0.16711301]
[1741408053922,0.4776,86047.0,86046.0,0.28336241]
[1741408054108,0.3608,86051.0,86046.0,0.26711301]
[1741408054408,0.3608,86051.0,86050.0,0.116244]
[1741408054909,0.3608,86051.0,86050.0,0.223544]
[1741408055805,0.3608,86051.0,86050.0,0.16568167]
[1741408056004,0.36314359,86065.0,86054.0,0.1162386]
[1741408056211,0.00174358,86065.0,86064.0,0.1162251]
[1741408056511,0.00174358,86065.0,86064.0,0.2162251]
[1741408057406,0.00174358,86065.0,86064.0,0.4292251]
[1741408058806,0.00174358,86065.0,86064.0,0.37136277]
[1741408059812,0.1162158,86071.0,86064.0,0.313]
[1741408060016,0.1162158,86071.0,86069.0,0.1162177]
[1741408060017,0.1086,86070.0,86069.0,0.1162177]
[1741408060613,0.1086,86070.0,86069.0,0.2162177]
[1741408060815,0.1086,86070.0,86069.0,0.1162177]
[1741408061721,0.1086,86070.0,86069.0,0.2162177]
[1741408061915,0.1086,86070.0,86069.0,0.15835537]
[1741408062712,0.1086,86070.0,86069.0,0.20824242]
[1741408064916,0.1086,86070.0,86069.0,0.14988705]
[1741408065117,0.00017423,86073.0,86069.0,0.14988705]
[1741408065419,0.00017423,86073.0,86072.0,0.1162143]
[1741408067919,0.00017423,86073.0,86072.0,0.05835197]
[1741408068316,0.4188899,86098.0,86072.0,0.25]
[1741408068622,0.1111,86097.0,86095.0,0.1161824]
[1741408069012,0.1111,86097.0,86081.0,0.07992]
[1741408069320,0.4188897,86098.0,86087.0,0.13985248]
[1741408069518,0.3608,86126.0,86102.0,0.2508864]
[1741408069815,0.1111,86129.0,86128.0,0.1161387]
[1741408070020,0.4719,86129.0,86119.0,0.13985248]
[1741408070218,0.1161576,86114.0,86113.0,0.3608]
[1741408070406,0.3608,86114.0,86110.0,0.13985248]
[1741408070612,0.2251,86113.0,86112.0,0.1161603]
[1741408071008,0.08032,86129.0,86122.0,0.1161467]
[1741408071216,0.2251,86128.0,86119.0,0.19792768]
[1741408071519,0.1161453,86124.0,86122.0,0.1161467]
[1741408071721,0.2330455,86123.0,86122.0,0.1161467]
[1741408071913,0.1161488,86121.0,86120.0,0.1161488]
[1741408072113,0.1161488,86121.0,86119.0,0.13985248]
[1741408072114,0.1169,86123.0,86119.0,0.13985248]
[1741408072318,0.2330495,86120.0,86119.0,0.25600338]
[1741408072623,0.1169,86120.0,86119.0,0.25600338]
[1741408073512,0.2330495,86120.0,86119.0,0.13985248]
[1741408073712,0.2330495,86120.0,86119.0,0.1161509]
[1741408073915,0.2330495,86120.0,86119.0,0.05828857]
[1741408074123,0.1169,86120.0,86119.0,0.05828857]
[1741408074321,0.3608,86154.0,86119.0,0.59096]
[1741408074618,0.3608,86147.0,86144.0,0.1161171]
[1741408074919,0.3608,86147.0,86144.0,0.10006943]
[1741408075114,0.11624265,86145.0,86144.0,6.943e-05]
[1741408075314,0.00012685,86145.0,86144.0,0.21618653]
[1741408075514,0.11624265,86145.0,86144.0,0.04789414]
[1741408075719,0.00012685,86145.0,86144.0,0.04789414]
[1741408076220,0.11302685,86145.0,86144.0,0.26401124]
[1741408076431,0.00012685,86145.0,86144.0,0.26401124]
[1741408076722,0.35592685,86147.0,86146.0,0.1161145]
[1741408077119,0.35592685,86147.0,86146.0,0.05825217]
[1741408077328,0.35592685,86147.0,86146.0,0.16655217]
[1741408077825,0.1129,86152.0,86151.0,0.1161077]
[1741408078118,0.1129,86152.0,86151.0,0.2161077]
[1741408078722,0.1129,86152.0,86151.0,0.3244077]
[1741408078924,0.2294,86152.0,86151.0,0.3244077]
[1741408079815,0.2294,86152.0,86150.0,0.1164]
[1741408080014,0.2294,86152.0,86150.0,0.05853767]
[1741408080227,0.2294,86152.0,86151.0,0.1161077]
[1741408080616,0.2294,86152.0,86150.0,0.05853767]
[1741408080818,0.1161077,86151.0,86150.0,0.05853767]
[1741408081023,0.2294,86152.0,86150.0,0.05853767]
[1741408081225,0.2279,86151.0,86150.0,0.17464667]
[1741408081521,0.2279,86151.0,86150.0,0.27464667]
[1741408081721,0.2279976,86151.0,86150.0,0.27464667]
[1741408083026,0.2279976,86151.0,86150.0,0.21678434]
[1741408084022,0.2279976,86151.0,86150.0,0.1161091]
[1741408084222,0.2279976,86151.0,86150.0,0.2161091]
[1741408085132,0.2279976,86151.0,86150.0,0.1161091]
[1741408085332,0.2279976,86151.0,86150.0,0.2161091]
[1741408086233,0.2279976,86151.0,86150.0,0.15824677]
[1741408087932,0.2279976,86151.0,86150.0,0.05824677]
[1741408088134,0.2279976,86151.0,86150.0,0.15824677]
[1741408089129,0.2279976,86151.0,86148.0,0.0580555]
[1741408089324,0.2279976,86151.0,86150.0,0.2161091]
[1741408089528,0.1160775,86174.0,86162.0,0.1160929]
[1741408089737,0.1178,86169.0,86162.0,0.1160929]
[1741408089928,0.1178,86169.0,86162.0,0.2160929]
[1741408090123,0.1178,86169.0,86162.0,0.4608]
[1741408090325,0.1178,86169.0,86168.0,0.1160848]
[1741408090531,0.1178,86169.0,86168.0,0.2160848]
[1741408091234,0.1178,86169.0,86168.0,0.48635018]
[1741408092233,0.1178,86169.0,86168.0,0.42848785]
[1741408092836,0.1198,86169.0,86168.0,0.42848785]
[1741408095139,0.1178,86169.0,86168.0,0.37026538]
[1741408095342,0.1178,86169.0,86168.0,0.48635018]
[1741408096033,0.2309,86169.0,86168.0,0.48635018]
[1741408096637,0.2309,86169.0,86168.0,0.38635018]
[1741408096833,0.2309,86169.0,86168.0,0.48635018]
[1741408098237,0.2309,86169.0,86168.0,0.42848785]
[1741408099038,0.2309,86169.0,86168.0,0.32848785]
[1741408099238,0.2309,86169.0,86168.0,0.42848785]
[1741408100540,0.1160902,86164.0,86163.0,0.00012964]
[1741408100847,0.4768902,86164.0,86163.0,0.00012964]
[1741408101034,0.1160902,86164.0,86163.0,0.00012964]
[1741408101347,0.1160983,86158.0,86157.0,0.67400144]
[1741408101640,0.1160983,86158.0,86157.0,0.67316144]
[1741408102343,0.3296983,86158.0,86157.0,0.67322808]
[1741408104345,0.2136,86158.0,86157.0,0.73146535]
[1741408104544,0.3296983,86158.0,86157.0,0.73146535]
[1741408105935,0.3296983,86158.0,86157.0,0.61536575]
[1741408106339,0.2136,86158.0,86157.0,0.83146535]
[1741408106936,0.2136,86158.0,86157.0,1.05146535]
[1741408107450,0.2136,86158.0,86157.0,0.99360302]
[1741408109852,0.2136,86158.0,86157.0,0.89360302]
[1741408110050,0.3296983,86158.0,86157.0,6.664e-05]
[1741408110456,0.1161023,86155.0,86154.0,0.30300431]
[1741408110956,0.1161023,86155.0,86154.0,0.41910801]
[1741408111152,0.1160999,86157.0,86156.0,0.1161004]
[1741408111456,0.2326999,86157.0,86156.0,0.1161004]
[1741408112357,0.05084689,86156.0,86155.0,0.3360017]
[1741408113057,0.1161023,86155.0,86154.0,0.30300431]
[1741408113360,0.3477023,86155.0,86154.0,0.24514198]
[1741408113963,0.1161037,86154.0,86153.0,0.1161048]
[1741408114360,0.2316037,86154.0,86153.0,0.1161048]
[1741408114751,0.2316037,86154.0,86153.0,0.3414048]
[1741408115151,0.1155,86154.0,86153.0,0.3414048]
[1741408116452,0.3608,86161.0,86160.0,0.1160956]
[1741408117463,0.3608,86161.0,86160.0,0.2160956]
[1741408118063,0.3608,86161.0,86160.0,0.4456956]
[1741408118756,0.2319,86165.0,86160.0,0.3296]
[1741408118958,0.1171,86165.0,86164.0,0.2160902]
[1741408119155,0.1171,86165.0,86164.0,0.3160902]
[1741408119552,0.1171,86165.0,86164.0,0.49032787]
[1741408121562,0.1171,86165.0,86164.0,0.59032787]
[1741408122557,0.1171,86165.0,86164.0,0.5321]
[1741408122763,0.05185987,86165.0,86164.0,0.6481902]
[1741408123058,0.00017413,86166.0,86164.0,0.6481902]
[1741408123364,0.00017413,86166.0,86165.0,0.3314888]
[1741408123863,0.00017413,86166.0,86165.0,0.5597888]
[1741408125553,0.00017413,86166.0,86165.0,0.50192647]
[1741408128657,0.00017413,86166.0,86165.0,0.4443888]
[1741408128851,0.1183,86172.0,86165.0,0.5443888]
[1741408129058,0.113,86181.0,86180.0,0.1160686]
[1741408130164,0.00011238,86190.0,86180.0,0.26944647]
[1741408130466,0.1079,86193.0,86189.0,0.1160555]
[1741408130666,0.1179,86192.0,86191.0,0.1160538]
[1741408131267,0.1179,86192.0,86191.0,0.57695201]
[1741408131567,0.03817907,86192.0,86191.0,0.41908968]
[1741408132565,0.04117907,86192.0,86191.0,0.51908968]
[1741408133362,0.003,86192.0,86191.0,0.51908968]
[1741408133668,0.003,86192.0,86191.0,0.65369821]
[1741408133964,0.003,86192.0,86191.0,0.36089821]